Department Family,Entity,Date,Expense Type,Expense Area,Supplier,Amount in sterling
Companies House,CH,29/03/2022,Contract Staff,Accounting,MICHAEL PAGE INTERNATIONAL RECRUITMENT,1100.58
Companies House,CH,15/03/2022,Consultants Computer,Accounting,Advanced Business Solutions,1275
Companies House,CH,29/03/2022,Contract Staff,Accounting,MICHAEL PAGE INTERNATIONAL RECRUITMENT,1320.69
Companies House,CH,29/03/2022,Contract Staff,Accounting,MICHAEL PAGE INTERNATIONAL RECRUITMENT,1320.69
Companies House,CH,22/03/2022,Credit Card Charges,Accounting,AD HOC INVOICES,178018.92
Companies House,CH,15/03/2022,Consultants Computer,Accounting,Advanced Business Solutions,2550
Companies House,CH,15/03/2022,Consultants Computer,Accounting,Advanced Business Solutions,5737.5
Companies House,CH,23/03/2022,CHD Invoice Printing,Accounting,PARAGON CUSTOMER COMMUNICATIONS (LONDON),579.52
Companies House,CH,18/03/2022,CHD Invoice Printing,Accounting,PARAGON CUSTOMER COMMUNICATIONS (LONDON),587.45
Companies House,CH,15/03/2022,Consultants Computer,Accounting,Advanced Business Solutions,6450
Companies House,CH,28/03/2022,Contract Staff,Accounting,Hays Specialist Recruitment Ltd,656.5
Companies House,CH,02/03/2022,Security,Accounting,Loomis Uk Ltd,688.42
Companies House,CH,18/03/2022,Contract Staff,Accounting,Hays Specialist Recruitment Ltd,693.48
Companies House,CH,15/03/2022,Contract Staff,Accounting,MICHAEL PAGE INTERNATIONAL RECRUITMENT,8474.44
Companies House,CH,15/03/2022,Consultants Computer,Accounting,Advanced Business Solutions,-935
Companies House,CH,15/03/2022,Contract Staff,Architecture & Design,CONCEPT RESOURCING T/A CONCEPT INFORMATION,10478.4
Companies House,CH,17/03/2022,Hardware & Software Maintenance,Architecture & Design,ROADMUNK INC.,13302.06
Companies House,CH,17/03/2022,Hardware & Software Maintenance,Architecture & Design,ROADMUNK INC.,1508.08
Companies House,CH,31/03/2022,Contract Staff,Architecture & Design,Hays Specialist Recruitment Ltd,1974.17
Companies House,CH,07/03/2022,Contract Staff,Architecture & Design,ALEXANDER MANN SOLUTIONS,2956.46
Companies House,CH,28/03/2022,Contract Staff,Architecture & Design,ALEXANDER MANN SOLUTIONS,2956.46
Companies House,CH,02/03/2022,Contract Staff,Architecture & Design,Hays Specialist Recruitment Ltd,3228.34
Companies House,CH,08/03/2022,Contract Staff,Architecture & Design,Hays Specialist Recruitment Ltd,3228.34
Companies House,CH,28/03/2022,External managed services,Architecture & Design,KAINOS SOFTWARE LTD,345951.83
Companies House,CH,15/03/2022,Contract Staff,Architecture & Design,ALEXANDER MANN SOLUTIONS,3695.58
Companies House,CH,21/03/2022,Contract Staff,Architecture & Design,ALEXANDER MANN SOLUTIONS,3695.58
Companies House,CH,08/03/2022,Contract Staff,Architecture & Design,Hays Specialist Recruitment Ltd,3948.34
Companies House,CH,23/03/2022,Contract Staff,Architecture & Design,Hays Specialist Recruitment Ltd,3948.34
Companies House,CH,23/03/2022,Contract Staff,Architecture & Design,Hays Specialist Recruitment Ltd,4035.42
Companies House,CH,02/03/2022,Contract Staff,Architecture & Design,Hays Specialist Recruitment Ltd,4035.42
Companies House,CH,15/03/2022,Contract Staff,Architecture & Design,Hays Specialist Recruitment Ltd,4035.42
Companies House,CH,15/03/2022,Contract Staff,Architecture & Design,Spring Technology Staffing Services Ltd,4264.5
Companies House,CH,15/03/2022,Contract Staff,Architecture & Design,Spring Technology Staffing Services Ltd,4264.5
Companies House,CH,15/03/2022,Contract Staff,Architecture & Design,Spring Technology Staffing Services Ltd,4264.5
Companies House,CH,15/03/2022,Contract Staff,Architecture & Design,Hays Specialist Recruitment Ltd,4441.88
Companies House,CH,08/03/2022,External managed services,Architecture & Design,FDM GROUP,64200
Companies House,CH,08/03/2022,External managed services,Architecture & Design,FDM GROUP,65820
Companies House,CH,18/03/2022,External managed services,Architecture & Design,FDM GROUP,720
Companies House,CH,03/03/2022,Environmental costs,Building Services,British Standards Institute,1090
Companies House,CH,07/03/2022,Restaurant Services,Building Services,ARAMARK,11556.53
Companies House,CH,28/03/2022,Environmental costs,Building Services,SANTIA ASBESTOS MANAGEMENT LTD,1215
Companies House,CH,09/03/2022,Environmental costs,Building Services,TETRA TECH,1250
Companies House,CH,30/03/2022,TFM Management fees,Building Services,GOVERNMENT PROPERTY AGENCY (Montagu Evans),13132.4
Companies House,CH,08/03/2022,TFM Management fees,Building Services,GOVERNMENT PROPERTY AGENCY (Montagu Evans),13132.4
Companies House,CH,15/03/2022,Gas,Building Services,CORONA ENERGY RETAIL 4 LTD,1366.6
Companies House,CH,08/03/2022,Water,Building Services,Dwr Cymru Welsh Water,1622.07
Companies House,CH,23/03/2022,Environmental costs,Building Services,TETRA TECH,2000
Companies House,CH,02/03/2022,Maintenance,Building Services,GOVERNMENT PROPERTY AGENCY (Montagu Evans),2358.52
Companies House,CH,31/03/2022,Environmental costs,Building Services,ARCADIS LLP,2587.5
Companies House,CH,07/03/2022,Professional Fees,Building Services,CARSON MCDOWELL LLP,3000
Companies House,CH,18/03/2022,Rolling Maintenance & minor contracts,Building Services,Integral Geotechnique (Wales) Limited,3050
Companies House,CH,08/03/2022,Security,Building Services,GOVERNMENT PROPERTY AGENCY (Montagu Evans),35948.59
Companies House,CH,30/03/2022,Security,Building Services,GOVERNMENT PROPERTY AGENCY (Montagu Evans),35948.59
Companies House,CH,31/03/2022,Environmental costs,Building Services,TETRA TECH,3625
Companies House,CH,08/03/2022,Cleaning Contract,Building Services,GOVERNMENT PROPERTY AGENCY (Montagu Evans),37437.34
Companies House,CH,30/03/2022,Cleaning Contract,Building Services,GOVERNMENT PROPERTY AGENCY (Montagu Evans),37437.34
Companies House,CH,30/03/2022,Environmental costs,Building Services,ARCADIS LLP,3850
Companies House,CH,02/03/2022,EST Additions This Year,Building Services,Advanced Fire Technologies Ltd,3864
Companies House,CH,02/03/2022,EST Additions This Year,Building Services,Advanced Fire Technologies Ltd,3875.11
Companies House,CH,31/03/2022,Professional Fees,Building Services,C D GRAY & ASSOCIATES LTD,3950
Companies House,CH,07/03/2022,Maintenance,Building Services,GOVERNMENT PROPERTY AGENCY (Montagu Evans),39732
Companies House,CH,15/03/2022,Wood Pellets,Building Services,AMP BIOMASS FUELS LTD,4088.02
Companies House,CH,23/03/2022,Wood Pellets,Building Services,AMP BIOMASS FUELS LTD,4141.44
Companies House,CH,07/03/2022,Wood Pellets,Building Services,AMP BIOMASS FUELS LTD,4314.78
Companies House,CH,03/03/2022,Electricity,Building Services,EDF ENERGY CUSTOMERS PLC,44172.01
Companies House,CH,30/03/2022,Environmental costs,Building Services,ARCADIS LLP,4775
Companies House,CH,02/03/2022,Professional Fees,Building Services,MCCOMBE  PIERCE  LLP T/A CUSHMAN & WAKEFIELD,5000
Companies House,CH,28/03/2022,Maintenance,Building Services,GOVERNMENT PROPERTY AGENCY (Montagu Evans),5559.02
Companies House,CH,31/03/2022,Environmental costs,Building Services,ARCADIS LLP,571.88
Companies House,CH,02/03/2022,Maintenance,Building Services,GOVERNMENT PROPERTY AGENCY (Montagu Evans),5824.64
Companies House,CH,15/03/2022,Rolling Maintenance & minor contracts,Building Services,BEN DANIEL,5850
Companies House,CH,08/03/2022,Maintenance Contract,Building Services,GOVERNMENT PROPERTY AGENCY (Montagu Evans),59340.39
Companies House,CH,30/03/2022,Maintenance Contract,Building Services,GOVERNMENT PROPERTY AGENCY (Montagu Evans),59340.39
Companies House,CH,24/03/2022,RATES,Building Services,City and County of Cardiff,63308.33
Companies House,CH,28/03/2022,Environmental costs,Building Services,WENSLEY & LAWZ,639
Companies House,CH,02/03/2022,Rolling Maintenance & minor contracts,Building Services,ROB MORRIS PLANT HIRE LTD,840
Companies House,CH,10/03/2022,Professional Fees,CDD Cardiff,STABLE LOGIC LTD,11472
Companies House,CH,15/03/2022,Print and Mailing Contract,CDD Cardiff,APS GROUP,123604.65
Companies House,CH,18/03/2022,Contact Centre,CDD Cardiff,Serco Limited,197966.66
Companies House,CH,09/03/2022,Postage,CDD Cardiff,APOLLO DISTRIBUTION SOLUTIONS LTD,2176
Companies House,CH,15/03/2022,Print and Mailing Contract,CDD Cardiff,APS GROUP,2198.58
Companies House,CH,16/03/2022,Postage,CDD Cardiff,DX Network Services Limited,2837.5
Companies House,CH,28/03/2022,Postage,CDD Cardiff,Royal Mail,3062.05
Companies House,CH,10/03/2022,Postage,CDD Cardiff,Royal Mail,3193.37
Companies House,CH,16/03/2022,Postage,CDD Cardiff,Royal Mail,3437.79
Companies House,CH,31/03/2022,Postage,CDD Cardiff,Royal Mail,3528.5
Companies House,CH,18/03/2022,Envelopes,CDD Cardiff,APS GROUP,4134
Companies House,CH,10/03/2022,Postage,CDD Cardiff,Royal Mail,4916.9
Companies House,CH,21/03/2022,Print and Mailing Contract,CDD Cardiff,APS GROUP,51435.23
Companies House,CH,29/03/2022,Print and Mailing Contract,CDD Cardiff,APS GROUP,57043.75
Companies House,CH,28/03/2022,Government Legal,CDD Cardiff,GOVERNMENT LEGAL DEPARTMENT,68372.04
Companies House,CH,15/03/2022,Print and Mailing Contract,CDD Cardiff,APS GROUP,71800.61
Companies House,CH,09/03/2022,Government Legal,CDD Cardiff,GOVERNMENT LEGAL DEPARTMENT,74032.56
Companies House,CH,21/03/2022,Gazette Notices,CDD Cardiff,Stationery Office (Williams Lea),8888.53
Companies House,CH,21/03/2022,Gazette Notices,CDD Cardiff,Stationery Office (Williams Lea),8888.53
Companies House,CH,07/03/2022,OM Additions This Year,Covid 19 Activity,D&G OFFICE INTERIORS LTD,1082.49
Companies House,CH,15/03/2022,OM Additions This Year,Covid 19 Activity,D&G OFFICE INTERIORS LTD,1271.99
Companies House,CH,02/03/2022,Travel - staff,Covid 19 Activity,CITY CABS (EDINBURGH) LTD,1563.04
Companies House,CH,03/03/2022,Software as a service,Cyber Security,E2E ASSURE,12965.9
Companies House,CH,31/03/2022,Software as a service,Cyber Security,E2E ASSURE,12965.9
Companies House,CH,03/03/2022,Software as a service,Cyber Security,E2E ASSURE,19935
Companies House,CH,31/03/2022,Software as a service,Cyber Security,E2E ASSURE,19935
Companies House,CH,08/03/2022,Consultants Computer,Cyber Security,NCC Group Security Services Ltd,25000
Companies House,CH,31/03/2022,Professional Fees,Cyber Security,PROCHECK UP,5000
Companies House,CH,10/03/2022,Contract Staff,"Data, Analytics & Research DAR",CONCEPT RESOURCING T/A CONCEPT INFORMATION,1183.2
Companies House,CH,21/03/2022,Contract Staff,"Data, Analytics & Research DAR",CONCEPT RESOURCING T/A CONCEPT INFORMATION,1696.44
Companies House,CH,28/03/2022,Contract Staff,"Data, Analytics & Research DAR",CONCEPT RESOURCING T/A CONCEPT INFORMATION,1995.55
Companies House,CH,21/03/2022,Contract Staff,"Data, Analytics & Research DAR",CONCEPT RESOURCING T/A CONCEPT INFORMATION,1995.55
Companies House,CH,15/03/2022,Contract Staff,"Data, Analytics & Research DAR",CONCEPT RESOURCING T/A CONCEPT INFORMATION,1995.55
Companies House,CH,07/03/2022,Contract Staff,"Data, Analytics & Research DAR",CONCEPT RESOURCING T/A CONCEPT INFORMATION,1995.55
Companies House,CH,10/03/2022,Contract Staff,"Data, Analytics & Research DAR",CONCEPT RESOURCING T/A CONCEPT INFORMATION,1995.55
Companies House,CH,07/03/2022,Contract Staff,"Data, Analytics & Research DAR",CONCEPT RESOURCING T/A CONCEPT INFORMATION,2120.55
Companies House,CH,15/03/2022,Contract Staff,"Data, Analytics & Research DAR",CONCEPT RESOURCING T/A CONCEPT INFORMATION,2120.55
Companies House,CH,28/03/2022,Contract Staff,"Data, Analytics & Research DAR",CONCEPT RESOURCING T/A CONCEPT INFORMATION,2120.55
Companies House,CH,07/03/2022,Contract Staff,"Data, Analytics & Research DAR",CONCEPT RESOURCING T/A CONCEPT INFORMATION,2762.65
Companies House,CH,02/03/2022,Contract Staff,"Data, Analytics & Research DAR",Hays Specialist Recruitment Ltd,2785.08
Companies House,CH,08/03/2022,Contract Staff,"Data, Analytics & Research DAR",Hays Specialist Recruitment Ltd,2785.08
Companies House,CH,23/03/2022,Contract Staff,"Data, Analytics & Research DAR",Hays Specialist Recruitment Ltd,2785.08
Companies House,CH,15/03/2022,Contract Staff,"Data, Analytics & Research DAR",Hays Specialist Recruitment Ltd,2785.08
Companies House,CH,31/03/2022,Contract Staff,"Data, Analytics & Research DAR",Hays Specialist Recruitment Ltd,2785.08
Companies House,CH,28/03/2022,Contract Staff,"Data, Analytics & Research DAR",CONCEPT RESOURCING T/A CONCEPT INFORMATION,2891.25
Companies House,CH,21/03/2022,Contract Staff,"Data, Analytics & Research DAR",CONCEPT RESOURCING T/A CONCEPT INFORMATION,2891.25
Companies House,CH,07/03/2022,Contract Staff,"Data, Analytics & Research DAR",CONCEPT RESOURCING T/A CONCEPT INFORMATION,2891.25
Companies House,CH,15/03/2022,Contract Staff,"Data, Analytics & Research DAR",CONCEPT RESOURCING T/A CONCEPT INFORMATION,2891.25
Companies House,CH,15/03/2022,Contract Staff,"Data, Analytics & Research DAR",CONCEPT RESOURCING T/A CONCEPT INFORMATION,2891.25
Companies House,CH,28/03/2022,Contract Staff,"Data, Analytics & Research DAR",CONCEPT RESOURCING T/A CONCEPT INFORMATION,2891.25
Companies House,CH,21/03/2022,Contract Staff,"Data, Analytics & Research DAR",CONCEPT RESOURCING T/A CONCEPT INFORMATION,2891.25
Companies House,CH,08/03/2022,Contract Staff,"Data, Analytics & Research DAR",Spring Technology Staffing Services Ltd,4564.5
Companies House,CH,29/03/2022,Contract Staff,"Data, Analytics & Research DAR",Spring Technology Staffing Services Ltd,4564.5
Companies House,CH,15/03/2022,Contract Staff,"Data, Analytics & Research DAR",Spring Technology Staffing Services Ltd,4564.5
Companies House,CH,23/03/2022,Contract Staff,"Data, Analytics & Research DAR",Spring Technology Staffing Services Ltd,4564.5
Companies House,CH,02/03/2022,Contract Staff,"Data, Analytics & Research DAR",Spring Technology Staffing Services Ltd,4564.5
Companies House,CH,10/03/2022,Contract Staff,"Data, Analytics & Research DAR",CONCEPT RESOURCING T/A CONCEPT INFORMATION,8287.95
Companies House,CH,15/03/2022,Contract Staff,"Data, Analytics & Research DAR",CONCEPT RESOURCING T/A CONCEPT INFORMATION,870
Companies House,CH,28/03/2022,Contract Staff,"Data, Analytics & Research DAR",CONCEPT RESOURCING T/A CONCEPT INFORMATION,870
Companies House,CH,21/03/2022,Contract Staff,"Data, Analytics & Research DAR",CONCEPT RESOURCING T/A CONCEPT INFORMATION,870
Companies House,CH,28/03/2022,External managed services,DDaT Projects,KAINOS SOFTWARE LTD,105011.13
Companies House,CH,30/03/2022,Professional Fees,DDaT Projects,AUTOMATED-INTELLIGENCE LTD,16625
Companies House,CH,10/03/2022,Professional Fees,DDaT Projects,NTT DATA BUSINESS SOLUTIONS LTD,5000
Companies House,CH,15/03/2022,Professional Fees,DDaT Projects,AUTOMATED-INTELLIGENCE LTD,5700
Companies House,CH,30/03/2022,Subscriptions,Directorate,Public Chairs Forum,500
Companies House,CH,30/03/2022,Subscriptions,Directorate,Association of Chief Executives,650
Companies House,CH,29/03/2022,RATES,Edinburgh,The City of Edinburgh Council,5901.75
Companies House,CH,08/03/2022,EST Additions This Year,Estates Projects,CHPK LIMITED,1000
Companies House,CH,08/03/2022,EST Additions This Year,Estates Projects,CHPK LIMITED,1000
Companies House,CH,15/03/2022,EST Additions This Year,Estates Projects,Computerised & Digital Security Systems,104779.84
Companies House,CH,28/03/2022,Fire Protection,Estates Projects,SANTIA ASBESTOS MANAGEMENT LTD,1350
Companies House,CH,09/03/2022,EST Additions This Year,Estates Projects,SANTIA ASBESTOS MANAGEMENT LTD,16592.3
Companies House,CH,28/03/2022,EST Additions This Year,Estates Projects,SANTIA ASBESTOS MANAGEMENT LTD,2020
Companies House,CH,18/03/2022,Rolling Maintenance & minor contracts,Estates Projects,Integral Geotechnique (Wales) Limited,2800
Companies House,CH,30/03/2022,EST Additions This Year,Estates Projects,BCM CONSTRUCTION LIMITED,308621.99
Companies House,CH,09/03/2022,Rolling Maintenance & minor contracts,Estates Projects,SANTIA ASBESTOS MANAGEMENT LTD,3255
Companies House,CH,31/03/2022,Rolling Maintenance & minor contracts,Estates Projects,Makers Construction Limited,4117.06
Companies House,CH,07/03/2022,EST Additions This Year,Estates Projects,Computerised & Digital Security Systems,41947.05
Companies House,CH,28/03/2022,EST Additions This Year,Estates Projects,Computerised & Digital Security Systems,44000
Companies House,CH,15/03/2022,EST Additions This Year,Estates Projects,BCM CONSTRUCTION LIMITED,5824.03
Companies House,CH,15/03/2022,EST Additions This Year,Estates Projects,BCM CONSTRUCTION LIMITED,59333.52
Companies House,CH,18/03/2022,Rolling Maintenance & minor contracts,Estates Projects,Makers Construction Limited,73057.72
Companies House,CH,23/03/2022,EST Additions This Year,Estates Projects,MORRIS'S GROUNDS MAINTENANCE LIMITED,8248.5
Companies House,CH,07/03/2022,Rolling Maintenance & minor contracts,Estates Projects,Makers Construction Limited,87507.54
Companies House,CH,28/03/2022,Fire Protection,Estates Projects,SANTIA ASBESTOS MANAGEMENT LTD,9950
Companies House,CH,08/03/2022,Recruitment Expenses,HR Service delivery,Hays Specialist Recruitment Ltd,-14736
Companies House,CH,08/03/2022,Recruitment Expenses,HR Service delivery,Hays Specialist Recruitment Ltd,1500
Companies House,CH,07/03/2022,Recruitment Expenses,HR Service delivery,Indeed Ireland Operations Ltd,1503.27
Companies House,CH,07/03/2022,Recruitment Expenses,HR Service delivery,Hays Specialist Recruitment Ltd,3300
Companies House,CH,15/03/2022,Professional Fees,HR Service delivery,DEPARTMENT FOR BUSINESS ENERGY AND INDUSTRY,47434.35
Companies House,CH,18/03/2022,Occupational Health Contract,HR Strategy & Policy,PEOPLE ASSET MANAGEMENT GROUP LTD,1478
Companies House,CH,18/03/2022,Occupational Health Contract,HR Strategy & Policy,PEOPLE ASSET MANAGEMENT GROUP LTD,2208.2
Companies House,CH,07/03/2022,Contract Staff,HR Strategy & Policy,CONCEPT RESOURCING T/A CONCEPT INFORMATION,2215.4
Companies House,CH,21/03/2022,Contract Staff,HR Strategy & Policy,CONCEPT RESOURCING T/A CONCEPT INFORMATION,2769.25
Companies House,CH,15/03/2022,Contract Staff,HR Strategy & Policy,CONCEPT RESOURCING T/A CONCEPT INFORMATION,2769.25
Companies House,CH,28/03/2022,Contract Staff,HR Strategy & Policy,CONCEPT RESOURCING T/A CONCEPT INFORMATION,2769.25
Companies House,CH,07/03/2022,Contract Staff,HR Strategy & Policy,ALEXANDER MANN SOLUTIONS,3005.4
Companies House,CH,08/03/2022,Occupational Health Contract,HR Strategy & Policy,PEOPLE ASSET MANAGEMENT GROUP LTD,3372
Companies House,CH,30/03/2022,Hardware & Software Maintenance,HR Strategy & Policy,MHR,4108.58
Companies House,CH,07/03/2022,Software Licence,HR Strategy & Policy,WEALTH WIZARDS BENEFITS LTD,5000
Companies House,CH,15/03/2022,Occupational Health Contract,HR Strategy & Policy,PEOPLE ASSET MANAGEMENT GROUP LTD,575
Companies House,CH,15/03/2022,Contract Staff,HR Strategy & Policy,ALEXANDER MANN SOLUTIONS,601.08
Companies House,CH,08/03/2022,Computer Cabling,Infrastructure,P J Telecom Services,1200
Companies House,CH,31/03/2022,Hardware & Software Maintenance,Infrastructure,QUEST SOFTWARE INTERNATIONAL LIMITED,1336.04
Companies House,CH,07/03/2022,Circuit Rental,Infrastructure,HIGHSPEED OFFICE LTD,19351.5
Companies House,CH,23/03/2022,Software as a service,Infrastructure,AVOIRA LTD,2450
Companies House,CH,23/03/2022,Telecom Rental,Infrastructure,AVOIRA LTD,2655.92
Companies House,CH,15/03/2022,Telephone Costs,Infrastructure,TELEFONICA UK LTD,3274.38
Companies House,CH,15/03/2022,Circuit Rental,Infrastructure,AdEPT Telecom PLC,3892.66
Companies House,CH,31/03/2022,Contract Staff,Infrastructure,Hays Specialist Recruitment Ltd,4035.42
Companies House,CH,31/03/2022,Contract Staff,Infrastructure,Hays Specialist Recruitment Ltd,4035.42
Companies House,CH,31/03/2022,Contract Staff,Infrastructure,Hays Specialist Recruitment Ltd,4035.42
Companies House,CH,31/03/2022,Contract Staff,Infrastructure,Hays Specialist Recruitment Ltd,4035.42
Companies House,CH,23/03/2022,Contract Staff,Infrastructure,Spring Technology Staffing Services Ltd,4264.5
Companies House,CH,15/03/2022,Contract Staff,Infrastructure,Spring Technology Staffing Services Ltd,4264.5
Companies House,CH,08/03/2022,Contract Staff,Infrastructure,Spring Technology Staffing Services Ltd,4264.5
Companies House,CH,02/03/2022,Contract Staff,Infrastructure,Spring Technology Staffing Services Ltd,4264.5
Companies House,CH,29/03/2022,Contract Staff,Infrastructure,Spring Technology Staffing Services Ltd,4264.5
Companies House,CH,23/03/2022,Hardware & Software Maintenance,Infrastructure,Konica Minolta Business Solutions (wales,4414.45
Companies House,CH,08/03/2022,Software as a service,Infrastructure,INSIGHT DIRECT (UK) LTD,444748.89
Companies House,CH,31/03/2022,Professional Fees,Infrastructure,AVOIRA LTD,650
Companies House,CH,07/03/2022,Circuit Rental,Infrastructure,HIGHSPEED OFFICE LTD,6951.15
Companies House,CH,16/03/2022,Hardware & Software Maintenance,Infrastructure,Microsoft Ireland Operations Ltd,706.7
Companies House,CH,08/03/2022,Professional Fees,Infrastructure,Computacenter (GCAT),7511.52
Companies House,CH,09/03/2022,Hardware & Software Maintenance,Infrastructure,Microsoft Ireland Operations Ltd,777.5
Companies House,CH,18/03/2022,Software Licence,Infrastructure Engineering,Oracle,132392.64
Companies House,CH,09/03/2022,Cloud Services,Infrastructure Engineering,Amazon Web Services,144984.54
Companies House,CH,09/03/2022,Cloud Services,Infrastructure Engineering,Amazon Web Services,14875.74
Companies House,CH,02/03/2022,Hardware & Software Maintenance,Infrastructure Engineering,Oracle,192510.33
Companies House,CH,09/03/2022,Cloud Services,Infrastructure Engineering,Amazon Web Services,2771.36
Companies House,CH,09/03/2022,Cloud Services,Infrastructure Engineering,Amazon Web Services,-30446.75
Companies House,CH,29/03/2022,Cloud Services,Infrastructure Engineering,Amazon Web Services,-3123.9
Companies House,CH,28/03/2022,Contract Staff,Infrastructure Engineering,CONCEPT RESOURCING T/A CONCEPT INFORMATION,3274.5
Companies House,CH,15/03/2022,Contract Staff,Infrastructure Engineering,CONCEPT RESOURCING T/A CONCEPT INFORMATION,3274.5
Companies House,CH,07/03/2022,Contract Staff,Infrastructure Engineering,CONCEPT RESOURCING T/A CONCEPT INFORMATION,3274.5
Companies House,CH,10/03/2022,Contract Staff,Infrastructure Engineering,CONCEPT RESOURCING T/A CONCEPT INFORMATION,3274.5
Companies House,CH,15/03/2022,Contract Staff,Infrastructure Engineering,Spring Technology Staffing Services Ltd,3750
Companies House,CH,02/03/2022,Contract Staff,Infrastructure Engineering,Spring Technology Staffing Services Ltd,3750
Companies House,CH,28/03/2022,Contract Staff,Infrastructure Engineering,Spring Technology Staffing Services Ltd,3750
Companies House,CH,28/03/2022,Contract Staff,Infrastructure Engineering,Spring Technology Staffing Services Ltd,3750
Companies House,CH,07/03/2022,Contract Staff,Infrastructure Engineering,Spring Technology Staffing Services Ltd,3750
Companies House,CH,09/03/2022,Cloud Services,Infrastructure Engineering,Amazon Web Services,588.65
Companies House,CH,18/03/2022,Other Intangible Additions,Infrastructure Engineering,Oracle,601784.88
Companies House,CH,29/03/2022,Cloud Services,Infrastructure Engineering,Amazon Web Services,8170.77
Companies House,CH,18/03/2022,Contract Staff,Internal Communications,Hays Specialist Recruitment Ltd,1028.54
Companies House,CH,07/03/2022,Contract Staff,Internal Communications,Hays Specialist Recruitment Ltd,1131.4
Companies House,CH,28/03/2022,Contract Staff,Internal Communications,Hays Specialist Recruitment Ltd,1234.25
Companies House,CH,15/03/2022,Independent adjudication,Late Filing Penalties,Independent adjudication,1044.5
Companies House,CH,15/03/2022,Contract Staff,Late Filing Penalties,Hays Specialist Recruitment Ltd,1067.9
Companies House,CH,15/03/2022,Contract Staff,Late Filing Penalties,Hays Specialist Recruitment Ltd,1070.21
Companies House,CH,08/03/2022,Contract Staff,Late Filing Penalties,Hays Specialist Recruitment Ltd,1079.81
Companies House,CH,15/03/2022,Contract Staff,Late Filing Penalties,Hays Specialist Recruitment Ltd,1080
Companies House,CH,07/03/2022,Contract Staff,Late Filing Penalties,Hays Specialist Recruitment Ltd,1103.81
Companies House,CH,28/03/2022,Contract Staff,Late Filing Penalties,Hays Specialist Recruitment Ltd,1118.21
Companies House,CH,15/03/2022,Contract Staff,Late Filing Penalties,Hays Specialist Recruitment Ltd,1127.81
Companies House,CH,15/03/2022,Contract Staff,Late Filing Penalties,Hays Specialist Recruitment Ltd,1157.86
Companies House,CH,15/03/2022,Contract Staff,Late Filing Penalties,Hays Specialist Recruitment Ltd,1157.86
Companies House,CH,07/03/2022,Contract Staff,Late Filing Penalties,Hays Specialist Recruitment Ltd,1157.86
Companies House,CH,08/03/2022,Contract Staff,Late Filing Penalties,Hays Specialist Recruitment Ltd,1180.34
Companies House,CH,15/03/2022,Contract Staff,Late Filing Penalties,Hays Specialist Recruitment Ltd,1235.08
Companies House,CH,15/03/2022,Contract Staff,Late Filing Penalties,Hays Specialist Recruitment Ltd,1247.81
Companies House,CH,15/03/2022,Contract Staff,Late Filing Penalties,Hays Specialist Recruitment Ltd,1247.81
Companies House,CH,07/03/2022,Contract Staff,Late Filing Penalties,Hays Specialist Recruitment Ltd,1247.81
Companies House,CH,08/03/2022,Contract Staff,Late Filing Penalties,Hays Specialist Recruitment Ltd,1247.81
Companies House,CH,15/03/2022,Contract Staff,Late Filing Penalties,Hays Specialist Recruitment Ltd,1247.81
Companies House,CH,08/03/2022,Contract Staff,Late Filing Penalties,Hays Specialist Recruitment Ltd,1247.81
Companies House,CH,07/03/2022,Contract Staff,Late Filing Penalties,Hays Specialist Recruitment Ltd,1247.81
Companies House,CH,02/03/2022,Contract Staff,Late Filing Penalties,Hays Specialist Recruitment Ltd,1247.81
Companies House,CH,15/03/2022,Contract Staff,Late Filing Penalties,Hays Specialist Recruitment Ltd,1247.81
Companies House,CH,02/03/2022,Contract Staff,Late Filing Penalties,Hays Specialist Recruitment Ltd,1247.81
Companies House,CH,28/03/2022,Contract Staff,Late Filing Penalties,Hays Specialist Recruitment Ltd,1247.81
Companies House,CH,02/03/2022,Contract Staff,Late Filing Penalties,Hays Specialist Recruitment Ltd,1247.81
Companies House,CH,07/03/2022,Contract Staff,Late Filing Penalties,Hays Specialist Recruitment Ltd,1247.81
Companies House,CH,31/03/2022,Contract Staff,Late Filing Penalties,Hays Specialist Recruitment Ltd,1247.81
Companies House,CH,02/03/2022,Contract Staff,Late Filing Penalties,Hays Specialist Recruitment Ltd,1259.81
Companies House,CH,18/03/2022,Contract Staff,Late Filing Penalties,Hays Specialist Recruitment Ltd,1430.02
Companies House,CH,28/03/2022,Contract Staff,Late Filing Penalties,Hays Specialist Recruitment Ltd,1487.62
Companies House,CH,28/03/2022,Contract Staff,Late Filing Penalties,Hays Specialist Recruitment Ltd,1517.66
Companies House,CH,28/03/2022,Contract Staff,Late Filing Penalties,Hays Specialist Recruitment Ltd,1517.66
Companies House,CH,18/03/2022,Contract Staff,Late Filing Penalties,Hays Specialist Recruitment Ltd,1607.62
Companies House,CH,18/03/2022,Contract Staff,Late Filing Penalties,Hays Specialist Recruitment Ltd,1607.62
Companies House,CH,18/03/2022,Contract Staff,Late Filing Penalties,Hays Specialist Recruitment Ltd,1607.62
Companies House,CH,18/03/2022,Contract Staff,Late Filing Penalties,Hays Specialist Recruitment Ltd,1607.62
Companies House,CH,28/03/2022,Contract Staff,Late Filing Penalties,Hays Specialist Recruitment Ltd,1656
Companies House,CH,23/03/2022,Contract Staff,Late Filing Penalties,Hays Specialist Recruitment Ltd,1656
Companies House,CH,31/03/2022,Contract Staff,Late Filing Penalties,Hays Specialist Recruitment Ltd,629.86
Companies House,CH,15/03/2022,Contract Staff,Late Filing Penalties,Hays Specialist Recruitment Ltd,647.22
Companies House,CH,18/03/2022,Contract Staff,Late Filing Penalties,Hays Specialist Recruitment Ltd,647.22
Companies House,CH,28/03/2022,Contract Staff,Late Filing Penalties,Hays Specialist Recruitment Ltd,649.06
Companies House,CH,07/03/2022,Contract Staff,Late Filing Penalties,Hays Specialist Recruitment Ltd,650.92
Companies House,CH,15/03/2022,Contract Staff,Late Filing Penalties,Hays Specialist Recruitment Ltd,654.6
Companies House,CH,15/03/2022,Contract Staff,Late Filing Penalties,Hays Specialist Recruitment Ltd,684.18
Companies House,CH,31/03/2022,Contract Staff,Late Filing Penalties,Hays Specialist Recruitment Ltd,684.18
Companies House,CH,18/03/2022,Contract Staff,Late Filing Penalties,Hays Specialist Recruitment Ltd,684.18
Companies House,CH,07/03/2022,Contract Staff,Late Filing Penalties,Hays Specialist Recruitment Ltd,684.18
Companies House,CH,18/03/2022,Contract Staff,Late Filing Penalties,Hays Specialist Recruitment Ltd,684.23
Companies House,CH,28/03/2022,Contract Staff,Late Filing Penalties,Hays Specialist Recruitment Ltd,710.4
Companies House,CH,31/03/2022,Contract Staff,Late Filing Penalties,Hays Specialist Recruitment Ltd,710.4
Companies House,CH,15/03/2022,Contract Staff,Late Filing Penalties,Hays Specialist Recruitment Ltd,828
Companies House,CH,15/03/2022,Contract Staff,Late Filing Penalties,Hays Specialist Recruitment Ltd,858
Companies House,CH,07/03/2022,Contract Staff,Late Filing Penalties,Hays Specialist Recruitment Ltd,888
Companies House,CH,02/03/2022,Contract Staff,Late Filing Penalties,Hays Specialist Recruitment Ltd,888
Companies House,CH,15/03/2022,Contract Staff,Late Filing Penalties,Hays Specialist Recruitment Ltd,888
Companies House,CH,31/03/2022,Contract Staff,Late Filing Penalties,Hays Specialist Recruitment Ltd,888
Companies House,CH,07/03/2022,Contract Staff,Late Filing Penalties,Hays Specialist Recruitment Ltd,888
Companies House,CH,23/03/2022,Contract Staff,Late Filing Penalties,Hays Specialist Recruitment Ltd,888
Companies House,CH,07/03/2022,Contract Staff,Late Filing Penalties,Hays Specialist Recruitment Ltd,888
Companies House,CH,15/03/2022,Contract Staff,Late Filing Penalties,Hays Specialist Recruitment Ltd,888
Companies House,CH,28/03/2022,Contract Staff,Late Filing Penalties,Hays Specialist Recruitment Ltd,888
Companies House,CH,02/03/2022,Contract Staff,Late Filing Penalties,Hays Specialist Recruitment Ltd,888
Companies House,CH,28/03/2022,Contract Staff,Late Filing Penalties,Hays Specialist Recruitment Ltd,888
Companies House,CH,15/03/2022,Contract Staff,Late Filing Penalties,Hays Specialist Recruitment Ltd,888
Companies House,CH,18/03/2022,Contract Staff,Late Filing Penalties,Hays Specialist Recruitment Ltd,888
Companies House,CH,28/03/2022,Contract Staff,Late Filing Penalties,Hays Specialist Recruitment Ltd,888
Companies House,CH,15/03/2022,Contract Staff,Late Filing Penalties,Hays Specialist Recruitment Ltd,888
Companies House,CH,18/03/2022,Contract Staff,Late Filing Penalties,Hays Specialist Recruitment Ltd,888
Companies House,CH,07/03/2022,Contract Staff,Late Filing Penalties,Hays Specialist Recruitment Ltd,888
Companies House,CH,08/03/2022,Contract Staff,Late Filing Penalties,Hays Specialist Recruitment Ltd,888
Companies House,CH,07/03/2022,Contract Staff,Late Filing Penalties,Hays Specialist Recruitment Ltd,898.8
Companies House,CH,07/03/2022,Contract Staff,Late Filing Penalties,Hays Specialist Recruitment Ltd,900
Companies House,CH,15/03/2022,Contract Staff,Late Filing Penalties,Hays Specialist Recruitment Ltd,900
Companies House,CH,18/03/2022,Contract Staff,Late Filing Penalties,Hays Specialist Recruitment Ltd,900
Companies House,CH,28/03/2022,Contract Staff,Late Filing Penalties,Hays Specialist Recruitment Ltd,900
Companies House,CH,07/03/2022,Contract Staff,Late Filing Penalties,Hays Specialist Recruitment Ltd,980.47
Companies House,CH,28/03/2022,Legal Disbursements,Late Filing Penalties Accounting,INDESSER,628920
Companies House,CH,28/03/2022,Legal Disbursements,Late Filing Penalties Accounting,INDESSER,80836.63
Companies House,CH,28/03/2022,Legal Disbursements,Late Filing Penalties Edinburgh,INDESSER,4074.36
Companies House,CH,09/03/2022,Legal Disbursements,Late Filing Penalties Edinburgh,ALSTON LAW LTD,825
Companies House,CH,28/03/2022,Legal Disbursements,Late Filing Penalties Northern Ireland,INDESSER,1823.53
Companies House,CH,28/03/2022,Government Legal,Legal Services,GOVERNMENT LEGAL DEPARTMENT,725.16
Companies House,CH,30/03/2022,TFM Management fees,London Information Centre,GOVERNMENT PROPERTY AGENCY (Montagu Evans),1269.02
Companies House,CH,08/03/2022,TFM Management fees,London Information Centre,GOVERNMENT PROPERTY AGENCY (Montagu Evans),1269.02
Companies House,CH,30/03/2022,Cleaning Contract,London Information Centre,GOVERNMENT PROPERTY AGENCY (Montagu Evans),1456.89
Companies House,CH,08/03/2022,Cleaning Contract,London Information Centre,GOVERNMENT PROPERTY AGENCY (Montagu Evans),1456.89
Companies House,CH,08/03/2022,London Maintenance,London Information Centre,GOVERNMENT PROPERTY AGENCY (Montagu Evans),1665.49
Companies House,CH,30/03/2022,London Maintenance,London Information Centre,GOVERNMENT PROPERTY AGENCY (Montagu Evans),1665.49
Companies House,CH,04/03/2022,RATES,London Information Centre,CITY OF WESTMINSTER,1934
Companies House,CH,24/03/2022,RATES,London Information Centre,CITY OF WESTMINSTER,386.35
Companies House,CH,24/03/2022,RATES,London Information Centre,CITY OF WESTMINSTER,588.8
Companies House,CH,08/03/2022,Security,London Information Centre,GOVERNMENT PROPERTY AGENCY (Montagu Evans),8223.6
Companies House,CH,30/03/2022,Security,London Information Centre,GOVERNMENT PROPERTY AGENCY (Montagu Evans),8223.6
Companies House,CH,31/03/2022,Training External,Northern Ireland,Inquisitio Consulting Ltd,16400
Companies House,CH,08/03/2022,Belfast Maintenance,Northern Ireland,GOVERNMENT PROPERTY AGENCY (Montagu Evans),1680.6
Companies House,CH,30/03/2022,Belfast Maintenance,Northern Ireland,GOVERNMENT PROPERTY AGENCY (Montagu Evans),1680.6
Companies House,CH,03/03/2022,Electricity,Northern Ireland,Power NI,2789.13
Companies House,CH,03/03/2022,Postage,Northern Ireland,QUADIENT UK LIMITED,503.43
Companies House,CH,28/03/2022,Legal Disbursements,Northern Ireland,WILSON NESBITT SOLICITORS,5951
Companies House,CH,08/03/2022,Cleaning Contract,Northern Ireland,GOVERNMENT PROPERTY AGENCY (Montagu Evans),617.09
Companies House,CH,30/03/2022,Cleaning Contract,Northern Ireland,GOVERNMENT PROPERTY AGENCY (Montagu Evans),617.09
Companies House,CH,28/03/2022,Legal Expenses General,Northern Ireland,WILSON NESBITT SOLICITORS,7956.5
Companies House,CH,30/03/2022,TFM Management fees,Northern Ireland,GOVERNMENT PROPERTY AGENCY (Montagu Evans),833.48
Companies House,CH,08/03/2022,TFM Management fees,Northern Ireland,GOVERNMENT PROPERTY AGENCY (Montagu Evans),833.48
Companies House,CH,23/03/2022,Cycle to work salary sacrifice,Organisational Overheads,CYCLESCHEME LIMITED,1858
Companies House,CH,23/03/2022,Cycle to work salary sacrifice,Organisational Overheads,CYCLESCHEME LIMITED,2000
Companies House,CH,31/03/2022,Internal Audit costs,Organisational Overheads,HM TREASURY GROUP,27750
Companies House,CH,08/03/2022,Travel - staff,Organisational Overheads,BLUE TRANSPORTATION LTD,3307.2
Companies House,CH,07/03/2022,Training External,Portfolio,BITESIZE COMPUTER TRAINING LTD,1000
Companies House,CH,15/03/2022,External Managed Services,Portfolio,AMIDO LTD,108500
Companies House,CH,21/03/2022,Training External,Portfolio,BITESIZE COMPUTER TRAINING LTD,1250
Companies House,CH,16/03/2022,User Acceptance Testing,Portfolio,PEOPLE FOR RESEARCH,1288
Companies House,CH,28/03/2022,Professional Fees,Portfolio,NCC Group Security Services Ltd,2300
Companies House,CH,28/03/2022,External managed services,Portfolio,KAINOS SOFTWARE LTD,26584.5
Companies House,CH,10/03/2022,Training External,Portfolio,BITESIZE COMPUTER TRAINING LTD,750
Companies House,CH,31/03/2022,Professional Fees,Portfolio,CoreFiling,78000
Companies House,CH,28/03/2022,Professional Fees,Portfolio,GOVERNMENT PROPERTY AGENCY (Montagu Evans),8782.66
Companies House,CH,31/03/2022,Stationery,Procurement,Banner,11816.2
Companies House,CH,09/03/2022,Credit Control Reports,Procurement,Equifax PLC,1201.87
Companies House,CH,18/03/2022,Contract Staff,Procurement,MICHAEL PAGE INTERNATIONAL RECRUITMENT,14268
Companies House,CH,07/03/2022,Stationery,Procurement,RISO (uk) LTD,2912
Companies House,CH,15/03/2022,Contract Staff,Procurement,MICHAEL PAGE INTERNATIONAL RECRUITMENT,2972.5
Companies House,CH,15/03/2022,Contract Staff,Procurement,MICHAEL PAGE INTERNATIONAL RECRUITMENT,-2972.5
Companies House,CH,15/03/2022,Contract Staff,Procurement,Hays Specialist Recruitment Ltd,3073.01
Companies House,CH,08/03/2022,Contract Staff,Procurement,Hays Specialist Recruitment Ltd,3156.14
Companies House,CH,23/03/2022,Contract Staff,Procurement,Hays Specialist Recruitment Ltd,3541.26
Companies House,CH,23/03/2022,Contract Staff,Procurement,Hays Specialist Recruitment Ltd,3541.26
Companies House,CH,08/03/2022,Contract Staff,Procurement,Hays Specialist Recruitment Ltd,3541.26
Companies House,CH,02/03/2022,Contract Staff,Procurement,Hays Specialist Recruitment Ltd,3541.26
Companies House,CH,15/03/2022,Contract Staff,Procurement,Hays Specialist Recruitment Ltd,3541.26
Companies House,CH,18/03/2022,Contract Staff,Procurement,Hays Specialist Recruitment Ltd,3541.26
Companies House,CH,02/03/2022,Contract Staff,Procurement,Hays Specialist Recruitment Ltd,3541.26
Companies House,CH,23/03/2022,Contract Staff,Procurement,Hays Specialist Recruitment Ltd,3841.26
Companies House,CH,15/03/2022,Contract Staff,Procurement,Hays Specialist Recruitment Ltd,3841.26
Companies House,CH,23/03/2022,Contract Staff,Procurement,Hays Specialist Recruitment Ltd,3945.18
Companies House,CH,02/03/2022,Contract Staff,Procurement,Hays Specialist Recruitment Ltd,3945.18
Companies House,CH,15/03/2022,Contract Staff,Procurement,Hays Specialist Recruitment Ltd,3945.18
Companies House,CH,09/03/2022,Credit Control Reports,Procurement,Equifax PLC,520
Companies House,CH,09/03/2022,Credit Control Reports,Procurement,Equifax PLC,560
Companies House,CH,18/03/2022,Stationery,Procurement,Banner,7780.53
Companies House,CH,30/03/2022,Contract Staff,Procurement,MICHAEL PAGE INTERNATIONAL RECRUITMENT,8917.5
Companies House,CH,08/03/2022,Contract Staff,Projects,Hays Specialist Recruitment Ltd,2185.32
Companies House,CH,28/03/2022,Contract Staff,Projects,Hays Specialist Recruitment Ltd,2497.49
Companies House,CH,28/03/2022,Contract Staff,Projects,Hays Specialist Recruitment Ltd,2497.5
Companies House,CH,28/03/2022,Contract Staff,Projects,Hays Specialist Recruitment Ltd,2497.5
Companies House,CH,15/03/2022,Contract Staff,Projects,Hays Specialist Recruitment Ltd,2809.68
Companies House,CH,15/03/2022,Contract Staff,Projects,Hays Specialist Recruitment Ltd,3121.86
Companies House,CH,28/03/2022,Contract Staff,Projects,Hays Specialist Recruitment Ltd,3121.86
Companies House,CH,23/03/2022,Contract Staff,Projects,Spring Technology Staffing Services Ltd,3964.5
Companies House,CH,15/03/2022,Contract Staff,Projects,Spring Technology Staffing Services Ltd,3964.5
Companies House,CH,08/03/2022,Contract Staff,Projects,Spring Technology Staffing Services Ltd,3964.5
Companies House,CH,29/03/2022,Contract Staff,Projects,Spring Technology Staffing Services Ltd,3964.5
Companies House,CH,02/03/2022,Contract Staff,Projects,Spring Technology Staffing Services Ltd,3964.5
Companies House,CH,30/03/2022,Campaigns,"Strategy, Policy & Communications",Cabinet Office,11058
Companies House,CH,18/03/2022,Contract Staff,"Strategy, Policy & Communications",Hays Specialist Recruitment Ltd,1220.88
Companies House,CH,15/03/2022,Contract Staff,"Strategy, Policy & Communications",Hays Specialist Recruitment Ltd,1368.86
Companies House,CH,28/03/2022,Contract Staff,"Strategy, Policy & Communications",Hays Specialist Recruitment Ltd,1368.86
Companies House,CH,07/03/2022,Contract Staff,"Strategy, Policy & Communications",Hays Specialist Recruitment Ltd,1368.88
Companies House,CH,23/03/2022,Digital Communications,"Strategy, Policy & Communications",TRACTIVITY LIMITED,18000
Companies House,CH,03/03/2022,Software as a service,"Strategy, Policy & Communications",FRONTIFY AG,19800
Companies House,CH,31/03/2022,Outside Market Research,"Strategy, Policy & Communications",C M Monitor (Britain Thinks) Ltd,23425
Companies House,CH,02/03/2022,Contract Staff,"Strategy, Policy & Communications",Hays Specialist Recruitment Ltd,3396.14
Companies House,CH,02/03/2022,Contract Staff,"Strategy, Policy & Communications",Spring Technology Staffing Services Ltd,3568.06
Companies House,CH,08/03/2022,Contract Staff,"Strategy, Policy & Communications",Spring Technology Staffing Services Ltd,3647.34
Companies House,CH,15/03/2022,Contract Staff,"Strategy, Policy & Communications",Spring Technology Staffing Services Ltd,3964.5
Companies House,CH,29/03/2022,Contract Staff,"Strategy, Policy & Communications",Spring Technology Staffing Services Ltd,3964.5
Companies House,CH,29/03/2022,Contract Staff,"Strategy, Policy & Communications",Spring Technology Staffing Services Ltd,3964.5
Companies House,CH,08/03/2022,Contract Staff,"Strategy, Policy & Communications",Hays Specialist Recruitment Ltd,4245.18
Companies House,CH,29/03/2022,Campaigns,"Strategy, Policy & Communications",Cabinet Office,9312
Companies House,CH,31/03/2022,Training CDD,Training,ERNST & YOUNG LLP,10154
Companies House,CH,29/03/2022,Training External,Training,CHANGEQUEST LTD,11045
Companies House,CH,07/03/2022,Training External,Training,ERNST & YOUNG LLP,1161
Companies House,CH,29/03/2022,Training CDD,Training,CSL-KPMG LLP,1221
Companies House,CH,29/03/2022,Training CDD,Training,CSL-KPMG LLP,1500
Companies House,CH,16/03/2022,Training CDD,Training,CSL-KPMG LLP,1500
Companies House,CH,21/03/2022,Training CDD,Training,CSL-KPMG LLP,1500
Companies House,CH,28/03/2022,Training CDD,Training,CSL-KPMG LLP,1500
Companies House,CH,29/03/2022,Training CDD,Training,CSL-KPMG LLP,1500
Companies House,CH,08/03/2022,Training CDD,Training,CSL-KPMG LLP,1500
Companies House,CH,29/03/2022,Training CDD,Training,CSL-KPMG LLP,1500
Companies House,CH,07/03/2022,Training CDD,Training,CSL-KPMG LLP,1500
Companies House,CH,23/03/2022,Training CDD,Training,CSL-KPMG LLP,1500
Companies House,CH,07/03/2022,Training CDD,Training,CSL-KPMG LLP,1500
Companies House,CH,15/03/2022,Training CDD,Training,CSL-KPMG LLP,1500
Companies House,CH,15/03/2022,Training CDD,Training,CSL-KPMG LLP,1500
Companies House,CH,18/03/2022,Training CDD,Training,CSL-KPMG LLP,1500
Companies House,CH,09/03/2022,Training CDD,Training,CSL-KPMG LLP,1500
Companies House,CH,28/03/2022,Training External,Training,CSL-KPMG LLP,1558
Companies House,CH,02/03/2022,Training Transformation,Training,CSL-KPMG LLP,1558
Companies House,CH,07/03/2022,Training People Transformation,Training,UNIVERSITY OF WALES TRINITY SAINT DAVID,1666
Companies House,CH,15/03/2022,Training CDD,Training,CSL-KPMG LLP,1691
Companies House,CH,16/03/2022,Training CDD,Training,CSL-KPMG LLP,1691
Companies House,CH,18/03/2022,Training CDD,Training,CSL-KPMG LLP,1691
Companies House,CH,07/03/2022,Training External,Training,CSL-KPMG LLP,1692
Companies House,CH,31/03/2022,Training External,Training,CSL-KPMG LLP,1692
Companies House,CH,31/03/2022,Training External,Training,CSL-KPMG LLP,1692
Companies House,CH,31/03/2022,Training External,Training,CSL-KPMG LLP,1692
Companies House,CH,31/03/2022,Training External,Training,CSL-KPMG LLP,1692
Companies House,CH,09/03/2022,Training External,Training,CSL-KPMG LLP,1722
Companies House,CH,28/03/2022,Training External,Training,CSL-KPMG LLP,1735
Companies House,CH,23/03/2022,Training Digital,Training,FIREBRAND TRAINING LTD,2000
Companies House,CH,28/03/2022,Training External,Training,ERNST & YOUNG LLP,29315
Companies House,CH,02/03/2022,Training External,Training,ERNST & YOUNG LLP,3140
Companies House,CH,28/03/2022,Training External,Training,ERNST & YOUNG LLP,3140
Companies House,CH,15/03/2022,Training External,Training,CSL-KPMG LLP,3500
Companies House,CH,07/03/2022,Training External,Training,CSL-KPMG LLP,3500
Companies House,CH,16/03/2022,Training External,Training,CSL-KPMG LLP,3500
Companies House,CH,29/03/2022,Training Policy/Communications,Training,PRECISELY Europe Software and Data,3780
Companies House,CH,09/03/2022,Subscriptions,Training,GOVERNMENT LEGAL DEPARTMENT,3854.4
Companies House,CH,02/03/2022,Subscriptions,Training,The Whitehall & Industry Group (Wig),5650
Companies House,CH,02/03/2022,Training Digital,Training,ESCAL INSTITUTE OF ADVANCED TECHNOLOGIES,5736.4
Companies House,CH,21/03/2022,Training External,Training,WALES QUALITY CENTRE,645
Companies House,CH,02/03/2022,Training External,Training,ERNST & YOUNG LLP,735.33
Companies House,CH,31/03/2022,Hardware & Software Maintenance,WebOps & DevOps,CoreFiling,112128.96
Companies House,CH,28/03/2022,Hardware & Software Maintenance,WebOps & DevOps,PRECISELY Europe Software and Data,14389.26
Companies House,CH,30/03/2022,Software as a service,WebOps & DevOps,MHR,15010
Companies House,CH,31/03/2022,Hardware & Software Maintenance,WebOps & DevOps,CoreFiling,1705
Companies House,CH,30/03/2022,Software as a service,WebOps & DevOps,MHR,17294
Companies House,CH,30/03/2022,Professional Fees,WebOps & DevOps,MHR,24700
Companies House,CH,28/03/2022,Contract Staff,WebOps & DevOps,ALEXANDER MANN SOLUTIONS,2930.88
Companies House,CH,15/03/2022,Contract Staff,WebOps & DevOps,ALEXANDER MANN SOLUTIONS,2930.88
Companies House,CH,07/03/2022,Contract Staff,WebOps & DevOps,ALEXANDER MANN SOLUTIONS,2930.88
Companies House,CH,16/03/2022,Contract Staff,WebOps & DevOps,Hays Specialist Recruitment Ltd,4035.42
Companies House,CH,15/03/2022,Contract Staff,WebOps & DevOps,Hays Specialist Recruitment Ltd,4035.42
Companies House,CH,08/03/2022,Contract Staff,WebOps & DevOps,Hays Specialist Recruitment Ltd,4035.42
Companies House,CH,31/03/2022,Contract Staff,WebOps & DevOps,Hays Specialist Recruitment Ltd,4035.42
Companies House,CH,28/03/2022,Contract Staff,WebOps & DevOps,Hays Specialist Recruitment Ltd,4035.42
Companies House,CH,02/03/2022,Contract Staff,WebOps & DevOps,Spring Technology Staffing Services Ltd,4264.5
Companies House,CH,28/03/2022,Contract Staff,WebOps & DevOps,Spring Technology Staffing Services Ltd,4264.5
Companies House,CH,15/03/2022,Contract Staff,WebOps & DevOps,Spring Technology Staffing Services Ltd,4264.5
Companies House,CH,15/03/2022,Contract Staff,WebOps & DevOps,Spring Technology Staffing Services Ltd,4264.5
Companies House,CH,21/03/2022,Contract Staff,WebOps & DevOps,ALEXANDER MANN SOLUTIONS,5861.76
